fUSD/lending_fUSD_20241107
["ID","MTS","AMOUNT","RATE_DAILY","PERIOD"]
[341538150,1730968232361,-187.25,0.00029288,2]
[341538151,1730968232371,-183.24,0.00029388,2]
[341538152,1730968232381,-149.18423721,0.00029482,2]
[341538153,1730968232401,-1.80576279,0.00029482,2]
[341538154,1730968232412,-183.67,0.00029482,2]
[341538155,1730968232422,-183.24,0.00029534,2]
[341538156,1730968232431,-334.66212039,0.00029668,2]
[341538157,1730968232442,-153.33787961,0.00029668,2]
[341538158,1730968232452,-183.67,0.00029948,2]
[341538159,1730968232461,-85.46206519,0.00029954,3]
[341538160,1730968232473,-66.53793481,0.00029954,3]
[341538161,1730968232483,-166.84,0.00029965,2]
[341538162,1730968232493,-162.591,0.0003,2]
[341538163,1730968232503,-5016.88249155,0.00030036,15]
[341538164,1730968232512,-158.44769512,0.00030036,2]
[341538165,1730968232522,-482.18,0.00030124,3]
[341538166,1730968232532,-314.67,0.00030124,10]
[341538167,1730968232542,-500.0,0.00030133,2]
[341538168,1730968232553,-500.0,0.00030133,2]
[341538169,1730968232562,-397.28320163,0.00030133,2]
[341538170,1730968232572,-500.0,0.00030133,2]
[341538171,1730968232582,-500.0,0.00030133,2]
[341538172,1730968232591,-500.0,0.00030133,2]
[341538173,1730968232600,-500.0,0.00030133,2]
[341538174,1730968232609,-1070.37044302,0.00030133,15]
[341538175,1730968232619,-188.65418848,0.00030134,2]
[341538176,1730968232628,-8904.59862631,0.00030134,2]
[341538177,1730968232637,-5793.31859429,0.00030134,2]
[341538180,1730968233138,-225315.00000001,0.00030134,2]
[341538181,1730968233149,-749.77848243,0.00030134,2]
[341538182,1730968233180,-340.78735789,0.00030134,2]
[341538183,1730968238385,-2338.75295613,0.00030134,2]
[341538184,1730968238442,-3175.18414954,0.00030134,2]
[341538185,1730968238455,-2994.57462642,0.00030134,2]
[341538186,1730968238475,-365.44120009,0.00030134,2]
[341538187,1730968238557,-28053.05558685,0.00030134,2]
[341538188,1730968238569,-210039.34712077,0.00030134,2]
[341538189,1730968238721,-20948.44539472,0.00030134,2]
[341538195,1730968240617,-363.99575155,0.00030134,2]
[341538294,1730968243604,-38490.18446521,0.00030134,2]
[341538295,1730968243627,-61267.7125562,0.00030134,2]
[341538296,1730968243639,-69213.39991615,0.00030134,2]
[341538297,1730968243750,-3004.950001,0.00030134,2]
[341538298,1730968243781,-0.58857428,0.00030134,2]
[341538299,1730968243792,-7023.4706126,0.00030134,2]
[341538312,1730968246318,-3451.1,0.00030134,2]
[341538313,1730968246331,-4141.29819251,0.00030134,2]
[341538314,1730968246375,-335.23446328,0.00030134,2]
[341538315,1730968246387,-2351.23538714,0.00030134,2]
[341538316,1730968246446,-750.08,0.00030134,2]
[341538317,1730968246523,-5630.0479735,0.00030134,2]
[341538318,1730968246656,-6822.26719468,0.00030134,2]
[341538319,1730968247872,54.159174,0.00018123,2]
[341538320,1730968247891,95.840826,0.00018123,2]
[341538321,1730968261677,300.0,0.00019725,2]
[341538322,1730968262446,420.0,0.00021484,2]
[341538323,1730968263189,587.0,0.00023401,2]
[341538324,1730968263942,240.0,0.00025488,2]
[341538326,1730968726350,156.36,0.00015342,2]
[341538329,1730969232135,-250.0,0.00021,2]
[341538330,1730969232156,-172.45,0.00021228,2]
[341538331,1730969232177,-300.0,0.00023,2]
[341538332,1730969232206,-1113.89,0.0002491,2]
[341538333,1730969232227,-350.0,0.00025,2]
[341538334,1730969232248,-2231.0,0.000264,3]
[341538335,1730969232269,-1052.0,0.000264,3]
[341538336,1730969232289,-416.29,0.000264,2]
[341538337,1730969232309,-150.0,0.00026575,2]
[341538338,1730969232330,-1600.0,0.00026599,2]
[341538339,1730969232351,-6715.58385333,0.000266,2]
[341538340,1730969237247,-191.68651297,0.000266,2]
[341538341,1730969253155,-6241.28008704,0.000265,2]
[341538344,1730969346100,-3294.49988156,0.000265,2]
[341538345,1730969346121,-391.85,0.000266,2]
[341538346,1730969346142,-250.0,0.00026668,2]
[341538347,1730969346163,-500.0,0.00026839,2]
[341538348,1730969346183,-961.88,0.00026872,2]
[341538349,1730969346203,-400.0,0.00026978,2]
[341538350,1730969346224,-500.0,0.00026979,2]
[341538351,1730969346245,-500.0,0.00026979,2]
[341538352,1730969346266,-500.0,0.00026979,2]
[341538353,1730969346286,-500.0,0.00026979,2]
[341538354,1730969346308,-500.0,0.00026979,2]
[341538355,1730969346329,-212.63685334,0.00026979,2]
[341538356,1730969346350,-500.0,0.00026979,2]
[341538357,1730969346370,-500.0,0.00026979,2]
[341538358,1730969346390,-500.0,0.00026979,2]
[341538359,1730969346410,-500.0,0.00026979,2]
[341538360,1730969346430,-500.0,0.00026979,2]
[341538361,1730969346451,-500.0,0.00026979,2]
[341538362,1730969346471,-500.0,0.00026979,2]
[341538363,1730969346491,-500.0,0.00026979,2]
[341538364,1730969346511,-500.0,0.00026979,2]
[341538365,1730969346532,-164.52922332,0.00026979,2]
[341538366,1730969346552,-499.99999999,0.00026979,2]
[341538367,1730969346571,-5945.55,0.00026979,2]
[341538368,1730969346591,-863.31,0.00026979,2]
[341538369,1730969346611,-7413.46186179,0.0002698,2]
[341538370,1730969348136,-83489.49176787,0.0002698,2]
[341538371,1730969348158,-400.0,0.00027,2]
[341538372,1730969348178,-176.0,0.00027,2]
[341538373,1730969351668,9003.94647935,0.000265,2]
[341538374,1730969362096,-169.04569135,0.00027155,2]
[341538375,1730969362117,-1113.89,0.00027174,2]
[341538376,1730969362138,-268.02,0.00027191,2]
[341538377,1730969362159,-1487.78,0.00027266,2]
[341538378,1730969369098,-200.0,0.00027397,7]
[341538379,1730969369118,-2368.28,0.00027657,2]
[341538380,1730969369137,-1487.78,0.00027704,2]
[341538381,1730969369157,-177.42,0.00027878,2]
[341538382,1730969369177,-151.13,0.00027878,2]
[341538383,1730969369195,-367.7,0.00027878,2]
[341538384,1730969369214,-1602.1,0.00027889,120]
[341538385,1730969369234,-162.05,0.00027923,2]
[341538386,1730969369252,-1747.19,0.00027993,2]
[341538387,1730969369274,-2108.53,0.00028008,2]
[341538388,1730969369292,-337.10614,0.00028011,2]
[341538397,1730969431510,-4625.88732377,0.00028011,2]
[341538399,1730969431520,-2298.46594915,0.00028012,2]
[341538403,1730969431563,-3001.11705764,0.00028012,2]
[341538404,1730969431575,-2180.12284278,0.00028012,2]
[341538405,1730969431700,-2058.49733782,0.00028012,2]
[341538406,1730969431712,-964.46147219,0.00028012,2]
[341538407,1730969431723,-13387.33534042,0.00028012,2]
[341538408,1730969431733,-546.27,0.00028015,2]
[341538409,1730969431742,-250.0,0.00028023,2]
[341538410,1730969431751,-500.0,0.00028057,2]
[341538411,1730969431760,-1000.0,0.00028064,2]
[341538412,1730969431770,-250.0,0.00028097,2]
[341538413,1730969431780,-150.0,0.00028113,2]
[341538414,1730969431790,-442.46,0.00028124,2]
[341538415,1730969431799,-186.08,0.00028125,30]
[341538416,1730969431809,-1487.78,0.00028142,2]
[341538417,1730969431819,-187.25,0.00028182,2]
[341538418,1730969431829,-3794.03,0.00028207,2]
[341538419,1730969431838,-336.47,0.00028569,120]
[341538420,1730969431849,-1487.78,0.0002858,2]
[341538421,1730969431870,-167.03,0.00028773,2]
[341538422,1730969431880,-450.0,0.00029,2]
[341538423,1730969431890,-339.60956907,0.00029018,2]
[341538424,1730969431902,-1148.17043093,0.00029018,2]
[341538425,1730969431911,-155.27,0.00029301,2]
[341538426,1730969431920,-155.27,0.0002932,2]
[341538427,1730969431929,-155.27,0.00029338,2]
[341538428,1730969431939,-155.27,0.00029356,2]
[341538429,1730969431950,-155.27,0.00029374,2]
[341538430,1730969431959,-217.27,0.00029385,2]
[341538431,1730969431969,-155.27,0.00029393,2]
[341538432,1730969431979,-155.27,0.00029411,2]
[341538433,1730969431988,-155.27,0.00029429,2]
[341538434,1730969431998,-1113.89,0.00029438,2]
[341538435,1730969432007,-155.27,0.00029448,2]
[341538436,1730969432016,-1487.78,0.00029456,2]
[341538438,1730969432025,-155.27,0.00029466,2]
[341538439,1730969432034,-73.86480615,0.00029484,2]
[341538440,1730969432046,-81.40519385,0.00029484,2]
[341538441,1730969432055,-155.27,0.00029503,2]
[341538442,1730969432064,-155.27,0.00029521,2]
[341538443,1730969432074,-155.27,0.00029539,2]
[341538444,1730969432083,-155.27,0.00029557,2]
[341538445,1730969432093,-155.27,0.00029576,2]
[341538446,1730969432103,-155.27,0.00029594,2]
[341538447,1730969432113,-300.0,0.000297,10]
[341538448,1730969432123,-151.13,0.00029736,2]
[341538449,1730969432133,-600.0,0.000298,10]
[341538450,1730969432143,-973.54829,0.0002983,2]
[341538451,1730969432154,-425.51303077,0.00029836,2]
[341538452,1730969432165,-1487.78,0.00029894,2]
[341538453,1730969432176,-900.0,0.000299,10]
[341538454,1730969432186,-417.347,0.0003,2]
[341538455,1730969432196,-417.347,0.0003,2]
[341538456,1730969432207,-4515.19424235,0.00030031,15]
[341538457,1730969432218,-503.29979043,0.00030034,2]
[341538458,1730969432228,-425.51303077,0.00030092,2]
[341538459,1730969432239,-262.23,0.00030124,10]
[341538460,1730969432251,-218.52,0.00030124,10]
[341538461,1730969432261,-178.0793577,0.00030126,2]
[341538462,1730969432271,-10035.86181354,0.00030131,2]
[341538463,1730969432283,-861.04347506,0.00030131,2]
[341538464,1730969432293,-4273.06774677,0.00030133,2]
[341538465,1730969432303,-1271.9,0.00030133,4]
[341538466,1730969432313,-1271.9,0.00030133,4]
[341538467,1730969432323,-423474.85858061,0.00030134,2]
[341538468,1730969432333,-200.0,0.00030134,2]
[341538469,1730969432342,-2000.0,0.00030134,2]
[341538470,1730969432352,-2000.0,0.00030134,2]
[341538471,1730969432361,-200.0,0.00030134,2]
[341538472,1730969432371,-1271.9,0.00030135,4]
[341538473,1730969432381,-1271.9,0.00030135,4]
[341538474,1730969432391,-8542.21347634,0.00030136,2]
[341538475,1730969432401,-275.91104,0.00030136,4]
[341538476,1730969432410,-157.950213,0.00030136,4]
[341538477,1730969432422,-268.946191,0.00030136,4]
[341538478,1730969432431,-153.1758,0.00030136,4]
[341538479,1730969432442,-564.48309209,0.00030136,4]
[341538480,1730969432454,-500.0,0.00030136,4]
[341538481,1730969432467,-603.68293317,0.00030136,4]
[341538482,1730969432476,-500.0,0.00030136,4]
[341538483,1730969432487,-500.0,0.00030136,4]
[341538484,1730969432498,-500.0,0.00030136,4]
[341538485,1730969432508,-168.86062687,0.00030136,4]
[341538486,1730969432518,-500.0,0.00030136,4]
[341538487,1730969432528,-500.0,0.00030136,4]
[341538488,1730969432538,-500.0,0.00030136,4]
[341538489,1730969432548,-500.0,0.00030136,4]
[341538490,1730969432559,-485.70677196,0.00030136,4]
[341538491,1730969432569,-500.0,0.00030136,4]
[341538492,1730969432580,-500.0,0.00030136,4]
[341538493,1730969432589,-500.0,0.00030136,4]
[341538494,1730969432598,-500.0,0.00030136,4]
[341538495,1730969432608,-500.0,0.00030136,4]
[341538496,1730969432618,-500.0,0.00030136,4]
[341538497,1730969432628,-500.0,0.00030136,4]
[341538498,1730969432638,-561.04,0.00030136,4]
[341538499,1730969432648,-500.0,0.00030136,4]
[341538500,1730969432658,-500.0,0.00030136,4]
[341538501,1730969432668,-500.0,0.00030136,4]
[341538502,1730969432678,-885.59,0.00030136,4]
[341538503,1730969432688,-500.0,0.00030136,4]
[341538504,1730969432698,-834.95,0.00030136,4]
[341538505,1730969432709,-500.0,0.00030136,4]
[341538506,1730969432719,-786.25,0.00030136,4]
[341538507,1730969432730,-500.0,0.00030136,4]
[341538508,1730969432740,-500.0,0.00030136,4]
[341538509,1730969432750,-500.0,0.00030136,4]
[341538510,1730969432760,-500.0,0.00030136,4]
[341538511,1730969432770,-311.42,0.00030136,4]
[341538512,1730969432782,-500.0,0.00030136,4]
[341538513,1730969432793,-451.5367964,0.00030136,4]
[341538514,1730969432803,-500.0,0.00030136,4]
[341538515,1730969432813,-500.0,0.00030136,4]
[341538516,1730969432824,-500.0,0.00030136,4]
[341538517,1730969432836,-501.47832452,0.00030136,4]
[341538518,1730969432846,-500.0,0.00030136,4]
[341538519,1730969432858,-500.0,0.00030136,4]
[341538520,1730969432868,-500.0,0.00030136,4]
[341538521,1730969432878,-500.0,0.00030136,4]
[341538522,1730969432888,-500.0,0.00030136,4]
[341538523,1730969432898,-500.55,0.00030136,4]
[341538524,1730969432908,-500.0,0.00030136,4]
[341538525,1730969432918,-500.0,0.00030136,4]
[341538526,1730969432928,-500.0,0.00030136,4]
[341538527,1730969432937,-523.44,0.00030136,4]
[341538528,1730969432948,-500.0,0.00030136,4]
[341538529,1730969432958,-500.0,0.00030136,4]
[341538530,1730969432967,-500.0,0.00030136,4]
[341538531,1730969432977,-500.0,0.00030136,4]
[341538532,1730969432986,-500.0,0.00030136,4]
[341538533,1730969432996,-500.0,0.00030136,4]
[341538534,1730969433006,-500.0,0.00030136,4]
[341538535,1730969433016,-500.0,0.00030136,4]
[341538536,1730969433025,-500.0,0.00030136,4]
[341538537,1730969433035,-500.0,0.00030136,4]
[341538538,1730969433045,-500.0,0.00030136,4]
[341538539,1730969433054,-255.07783735,0.00030136,4]
[341538540,1730969433064,-500.0,0.00030136,4]
[341538541,1730969433074,-500.0,0.00030136,4]
[341538542,1730969433084,-550.33,0.00030136,4]
[341538543,1730969433094,-500.0,0.00030136,4]
[341538544,1730969433104,-500.0,0.00030136,4]
[341538545,1730969433113,-543.96,0.00030136,4]
[341538546,1730969433123,-500.0,0.00030136,4]
[341538547,1730969433133,-779.74,0.00030136,4]
[341538548,1730969433143,-857.03,0.00030136,4]
[341538549,1730969433153,-500.0,0.00030136,4]
[341538550,1730969433162,-500.0,0.00030136,4]
[341538551,1730969433173,-522.99,0.00030136,4]
[341538552,1730969433183,-265.09341164,0.00030136,4]
[341538553,1730969433193,-856.82,0.00030136,4]
[341538554,1730969433203,-500.0,0.00030136,4]
[341538555,1730969433213,-682.83,0.00030136,4]
[341538556,1730969433223,-552.38,0.00030136,4]
[341538557,1730969433234,-501.72,0.00030136,4]
[341538558,1730969433244,-814.48,0.00030136,4]
[341538559,1730969433254,-692.1,0.00030136,4]
[341538560,1730969433264,-500.0,0.00030136,4]
[341538561,1730969433274,-500.0,0.00030136,4]
[341538562,1730969433285,-500.0,0.00030136,4]
[341538563,1730969433295,-559.55,0.00030136,4]
[341538564,1730969433307,-637.01518551,0.00030136,4]
[341538565,1730969433317,-1935.77,0.00030136,4]
[341538566,1730969433328,-500.0,0.00030136,4]
[341538567,1730969433338,-500.0,0.00030136,4]
[341538568,1730969433348,-500.0,0.00030136,4]
[341538569,1730969433358,-500.0,0.00030136,4]
[341538570,1730969433368,-500.0,0.00030136,4]
[341538571,1730969433378,-500.0,0.00030136,4]
[341538572,1730969433388,-500.0,0.00030136,4]
[341538573,1730969433398,-500.0,0.00030136,4]
[341538574,1730969433408,-500.0,0.00030136,4]
[341538575,1730969433418,-1495.4,0.00030136,4]
[341538576,1730969433428,-739.29,0.00030136,4]
[341538577,1730969433438,-500.0,0.00030136,4]
[341538578,1730969433448,-500.0,0.00030136,4]
[341538579,1730969433457,-500.0,0.00030136,4]
[341538580,1730969433467,-500.0,0.00030136,4]
[341538581,1730969433477,-500.0,0.00030136,4]
[341538582,1730969433487,-500.0,0.00030136,4]
[341538583,1730969433497,-729.35,0.00030136,4]
[341538584,1730969433507,-697.85,0.00030136,4]
[341538585,1730969433518,-503.93,0.00030136,4]
[341538586,1730969433527,-500.0,0.00030136,4]
[341538587,1730969433538,-500.0,0.00030136,4]
[341538588,1730969433548,-500.0,0.00030136,4]
[341538589,1730969433559,-594.09,0.00030136,4]
[341538590,1730969433569,-500.0,0.00030136,4]
[341538591,1730969433580,-672.86,0.00030136,4]
[341538592,1730969433591,-1245.64,0.00030136,4]
[341538593,1730969433602,-849.98,0.00030136,4]
[341538594,1730969433612,-892.99,0.00030136,4]
[341538595,1730969433622,-582.72399385,0.00030136,4]
[341538596,1730969433633,-500.0,0.00030136,4]
[341538597,1730969433644,-500.0,0.00030136,4]
[341538598,1730969433655,-544.55926537,0.00030136,4]
[341538599,1730969433665,-500.0,0.00030136,4]
[341538600,1730969433676,-500.0,0.00030136,4]
[341538601,1730969433687,-552.65,0.00030136,4]
[341538602,1730969433697,-500.0,0.00030136,4]
[341538603,1730969433707,-1326.41,0.00030136,4]
[341538604,1730969433718,-1385.2,0.00030136,4]
[341538605,1730969433728,-581.9,0.00030136,4]
[341538606,1730969433739,-500.0,0.00030136,4]
[341538607,1730969433749,-500.0,0.00030136,4]
[341538608,1730969433760,-500.0,0.00030136,4]
[341538609,1730969433770,-500.0,0.00030136,4]
[341538610,1730969433787,-500.0,0.00030136,4]
[341538611,1730969433799,-500.0,0.00030136,4]
[341538612,1730969433811,-500.0,0.00030136,4]
[341538613,1730969433824,-539.97,0.00030136,4]
[341538614,1730969433835,-500.0,0.00030136,4]
[341538615,1730969433846,-500.0,0.00030136,4]
[341538616,1730969433856,-583.51792637,0.00030136,4]
[341538617,1730969433872,-500.0,0.00030136,4]
[341538618,1730969433883,-151.0,0.00030136,7]
[341538619,1730969433893,-500.0,0.00030136,4]
[341538620,1730969433903,-500.0,0.00030136,4]
[341538621,1730969433915,-500.0,0.00030136,4]
[341538622,1730969433926,-151.0,0.00030136,7]
[341538623,1730969433936,-500.0,0.00030136,4]
[341538624,1730969433947,-151.0,0.00030136,7]
[341538625,1730969433960,-500.0,0.00030136,4]
[341538626,1730969433970,-632.87,0.00030136,4]
[341538627,1730969433981,-1547.06,0.00030136,4]
[341538628,1730969433992,-151.0,0.00030136,7]
[341538629,1730969434002,-500.0,0.00030136,4]
[341538630,1730969434012,-1531.39,0.00030136,4]
[341538631,1730969434023,-500.0,0.00030136,4]
[341538632,1730969434033,-500.0,0.00030136,4]
[341538633,1730969434043,-500.0,0.00030136,4]
[341538634,1730969434054,-500.0,0.00030136,4]
[341538635,1730969434064,-500.0,0.00030136,4]
[341538636,1730969434074,-500.0,0.00030136,4]
[341538637,1730969434084,-500.0,0.00030136,4]
[341538638,1730969434094,-595.53,0.00030136,4]
[341538639,1730969434104,-331.12832707,0.00030136,4]
[341538640,1730969434115,-500.0,0.00030136,4]
[341538641,1730969434125,-524.18826683,0.00030136,4]
[341538642,1730969434136,-500.0,0.00030136,4]
[341538643,1730969434146,-751.1,0.00030136,4]
[341538644,1730969434156,-593.22,0.00030136,4]
[341538645,1730969434166,-1959.41,0.00030136,4]
[341538646,1730969434177,-500.0,0.00030136,4]
[341538647,1730969434187,-500.0,0.00030136,4]
[341538648,1730969434197,-500.0,0.00030136,4]
[341538649,1730969434207,-500.0,0.00030136,4]
[341538650,1730969434217,-500.0,0.00030136,4]
[341538651,1730969434227,-500.0,0.00030136,4]
[341538652,1730969434237,-500.0,0.00030136,4]
[341538653,1730969434248,-500.0,0.00030136,4]
[341538654,1730969434258,-500.0,0.00030136,4]
[341538655,1730969434268,-500.0,0.00030136,4]
[341538656,1730969434278,-500.0,0.00030136,4]
[341538657,1730969434288,-500.0,0.00030136,4]
[341538658,1730969434298,-1482.58,0.00030136,4]
[341538659,1730969434310,-500.0,0.00030136,4]
[341538660,1730969434324,-500.0,0.00030136,4]
[341538661,1730969434334,-1658.29,0.00030136,4]
[341538662,1730969434344,-500.0,0.00030136,4]
[341538663,1730969434354,-1037.52,0.00030136,4]
[341538664,1730969434365,-500.0,0.00030136,4]
[341538665,1730969434375,-773.85,0.00030136,4]
[341538666,1730969434385,-647.26,0.00030136,4]
[341538667,1730969434396,-500.0,0.00030136,4]
[341538668,1730969434407,-1596.32,0.00030136,4]
[341538669,1730969434417,-500.0,0.00030136,4]
[341538670,1730969434427,-540.71,0.00030136,4]
[341538671,1730969434438,-500.0,0.00030136,4]
[341538672,1730969434449,-500.0,0.00030136,4]
[341538673,1730969434459,-500.0,0.00030136,4]
[341538674,1730969434471,-500.0,0.00030136,4]
[341538675,1730969434776,-500.0,0.00030136,4]
[341538676,1730969434788,-500.0,0.00030136,4]
[341538677,1730969434798,-500.0,0.00030136,4]
[341538678,1730969434811,-676.08,0.00030136,4]
[341538679,1730969434821,-500.0,0.00030136,4]
[341538680,1730969434831,-500.0,0.00030136,4]
[341538681,1730969434840,-500.0,0.00030136,4]
[341538682,1730969434849,-500.0,0.00030136,4]
[341538683,1730969434859,-1027.76059179,0.00030136,30]
[341538684,1730969434868,-500.0,0.00030136,4]
[341538685,1730969434878,-888.63,0.00030136,4]
[341538686,1730969434887,-638.91,0.00030136,4]
[341538687,1730969434896,-500.0,0.00030136,4]
[341538688,1730969434905,-1467.52,0.00030136,4]
[341538689,1730969434915,-500.0,0.00030136,4]
[341538690,1730969434925,-500.0,0.00030136,4]
[341538691,1730969434935,-151.0,0.00030136,7]
[341538692,1730969434944,-594.59,0.00030136,4]
[341538693,1730969434954,-1310.42,0.00030136,4]
[341538694,1730969434963,-500.0,0.00030136,4]
[341538695,1730969434973,-597.23,0.00030136,4]
[341538696,1730969434982,-500.0,0.00030136,4]
[341538697,1730969434991,-1256.83,0.00030136,4]
[341538698,1730969435001,-500.0,0.00030136,4]
[341538699,1730969435010,-645.67,0.00030136,4]
[341538700,1730969435020,-1068.78,0.00030136,4]
[341538701,1730969435030,-1600.62,0.00030136,4]
[341538702,1730969435039,-1160.28,0.00030136,4]
[341538703,1730969435049,-500.0,0.00030136,4]
[341538704,1730969435061,-500.0,0.00030136,4]
[341538705,1730969435070,-500.0,0.00030136,4]
[341538706,1730969435080,-500.0,0.00030136,4]
[341538707,1730969435090,-554.93,0.00030136,4]
[341538708,1730969435100,-500.0,0.00030136,4]
[341538709,1730969435110,-500.0,0.00030136,4]
[341538710,1730969435120,-1361.24,0.00030136,4]
[341538711,1730969435130,-576.51,0.00030136,4]
[341538712,1730969435140,-773.54,0.00030136,4]
[341538713,1730969435150,-606.02755133,0.00030136,4]
[341538714,1730969435160,-1482.32,0.00030136,4]
[341538715,1730969435169,-500.0,0.00030136,4]
[341538716,1730969435179,-582.92,0.00030136,4]
[341538717,1730969435189,-500.0,0.00030136,4]
[341538718,1730969435198,-710.09,0.00030136,4]
[341538719,1730969435208,-500.0,0.00030136,4]
[341538720,1730969435218,-500.0,0.00030136,4]
[341538721,1730969435227,-316.50516213,0.00030136,4]
[341538722,1730969435237,-686.23,0.00030136,4]
[341538723,1730969435247,-1435.15,0.00030136,4]
[341538724,1730969435257,-502.29816263,0.00030136,4]
[341538725,1730969435267,-1167.0,0.00030136,4]
[341538726,1730969435276,-500.0,0.00030136,4]
[341538727,1730969435286,-500.0,0.00030136,4]
[341538728,1730969435295,-1150.78,0.00030136,4]
[341538729,1730969435306,-736.24,0.00030136,4]
[341538730,1730969435316,-2046.49,0.00030136,4]
[341538731,1730969435325,-500.0,0.00030136,4]
[341538732,1730969435334,-500.0,0.00030136,4]
[341538733,1730969435344,-500.0,0.00030136,4]
[341538734,1730969435354,-500.0,0.00030136,4]
[341538735,1730969435363,-500.0,0.00030136,4]
[341538736,1730969435372,-500.0,0.00030136,4]
[341538737,1730969435382,-500.0,0.00030136,4]
[341538738,1730969435392,-925.56,0.00030136,4]
[341538739,1730969435401,-500.0,0.00030136,4]
[341538740,1730969435411,-500.0,0.00030136,4]
[341538741,1730969435420,-554.50002822,0.00030136,4]
[341538742,1730969435429,-500.0,0.00030136,4]
[341538743,1730969435439,-1149.74,0.00030136,4]
[341538744,1730969435448,-500.0,0.00030136,4]
[341538745,1730969435458,-500.0,0.00030136,4]
[341538746,1730969435467,-1373.98,0.00030136,4]
[341538747,1730969435477,-820.52071332,0.00030136,10]
[341538748,1730969435505,-179.47928668,0.00030136,10]
[341538749,1730969435514,-573.22028296,0.00030136,4]
[341538750,1730969435533,-1295.65971704,0.00030136,4]
[341538751,1730969435543,-1077.27,0.00030136,4]
[341538752,1730969435553,-500.0,0.00030136,4]
[341538753,1730969435564,-500.0,0.00030136,4]
[341538754,1730969435573,-1326.87,0.00030136,4]
[341538755,1730969435583,-500.0,0.00030136,4]
[341538756,1730969435592,-602.45,0.00030136,4]
[341538757,1730969435601,-600.59,0.00030136,4]
[341538758,1730969435611,-690.19,0.00030136,4]
[341538759,1730969435621,-500.0,0.00030136,4]
[341538760,1730969435630,-1122.55,0.00030136,4]
[341538761,1730969435640,-563.93161276,0.00030136,4]
[341538762,1730969435650,-500.0,0.00030136,4]
[341538763,1730969435660,-527.87640947,0.00030136,4]
[341538764,1730969435669,-1288.0,0.00030136,4]
[341538765,1730969435679,-500.0,0.00030136,4]
[341538766,1730969435689,-544.32,0.00030136,4]
[341538767,1730969435699,-1099.48,0.00030136,4]
[341538768,1730969435710,-389.36541867,0.00030136,4]
[341538769,1730969435720,-500.0,0.00030136,4]
[341538770,1730969435730,-1282.86,0.00030136,4]
[341538771,1730969435740,-917.66,0.00030136,4]
[341538772,1730969435751,-500.0,0.00030136,4]
[341538773,1730969435760,-306.395862,0.00030136,7]
[341538774,1730969435770,-500.0,0.00030136,4]
[341538775,1730969435781,-306.395862,0.00030136,7]
[341538776,1730969435792,-500.0,0.00030136,4]
[341538777,1730969435802,-600.94,0.00030136,4]
[341538778,1730969435814,-1493.58,0.00030136,4]
[341538779,1730969435825,-1632.55,0.00030136,4]
[341538780,1730969435835,-500.0,0.00030136,4]
[341538781,1730969435845,-500.0,0.00030136,4]
[341538782,1730969435855,-500.0,0.00030136,4]
[341538783,1730969435865,-698.89,0.00030136,4]
[341538784,1730969435876,-500.0,0.00030136,4]